Cogmind - Beta 17 @@@ ROGUE MODE // 2026.08.26 @ 16:27:33 Player: +Jones Result: Destroyed by Striker with Plasma Lance Performance ------------- Evolutions (9) 4500 Regions Visited (22) 4400 Robots Destroyed (440) 2200 Value Destroyed (20087) 20087 Prototype IDs (54) 1080 Alien Tech Used (0) 0 Bonus (26746) 26746 TOTAL SCORE: 59013 Bonus ------- Triggered High Security 500 High Alert Combat Kills 3568 Follower Combat Kills 3068 Prayed to X0-1V1 5000 Major X0-1V1 Interference 8100 Awakened Behemoth Slayer 1000 Met Warlord at Base 500 MAIN.C Attacked Warlord 500 Warlord Defense Kills 2092 Built Enhanced Grunts 300 A7 Reached Mainframe 300 Met R17 at Cetus 500 Met R17 at Research 2000 Friendly Fire -682 Cogmind --------- Core Integrity 0/1575 Matter 566/900 Energy 798/1440 System Corruption 30% Temperature Cool (86) Movement Immobile (Siege) Location -1/Access Parts ------- > --- POWER (2) -------- Particle Reactor > --- PROPULSION (5) --- Advanced Heavy Siege Treads Advanced Heavy Siege Treads > --- UTILITY (12) ----- X0-1V1's Piety Tracker > --- WEAPON (7) ------- HERF Cannon Enhanced Nova Cannon CR-A16's Behemoth Slayer > --- INVENTORY (5) ---- Antigrav Array Quantum Capacitor Improved Plasma Cutter Peak State ------------ > --- POWER ------------ Light Quantum Reactor Improved Quantum Reactor > --- PROPULSION ------- Armored Heavy Treads Centrium Heavy Treads High-density Centrium Heavy Treads > --- UTILITY ---------- Huge Storage Unit Experimental Optical Array Advanced Signal Interpreter Experimental Targeting Computer Experimental Core Analyzer Experimental Transmission Jammer Advanced Cloaking Device Centrium Medium Armor Plating Makeshift Ablative Armor Advanced Remote Force Field X0-1V1's Piety Tracker > --- WEAPON ----------- Railgun Advanced KE Penetrator Advanced KE Penetrator Helical Railgun Helical Railgun Helical Railgun > --- INVENTORY -------- Mini Fusion Reactor Biometal Heavy Treads Experimental Biometal Heavy Treads Advanced Heavy Siege Treads Matter Compressor Seismic Detector Layered Medium Armor Plating Centrium Medium Armor Plating Thermal Barrier Advanced Point Defense System Advanced Point Defense System System Guard Long-range Tractor Beam Hacking Drone Bay Matter Neutralizer Railgun Rocket Array Improved Plasma Cutter Heavy Scimitar of Distortion CR-A16's Behemoth Slayer [Rating: 225] Favorites ----------- Power Improved Deuterium Engine Engine Improved Deuterium Engine Power Core Neutrino Core Reactor Quantum Reactor Propulsion Light Treads Treads Light Treads Leg Flexi-carbon Leg Wheel Armored Huge Wheel Hover Unit Antigrav Array Utility X0-1V1's Piety Tracker Device X0-1V1's Piety Tracker Storage Huge Storage Unit Processor Core Analyzer Hackware Improved Hacking Suite Protection Improved Medium Armor Plating Weapon Advanced KE Penetrator Energy Gun Improved EM Shotgun Energy Cannon Enhanced Nova Cannon Ballistic Gun Advanced KE Penetrator Ballistic Cannon Battle Cannon Launcher Grenade Launcher Special Weapon Improved Plasma Cutter Impact Weapon Powered Hammer Slashing Weapon Heavy Scimitar of Distortion Piercing Weapon CR-A16's Behemoth Slayer Build | -11 -10 -10 -8 -7 -6 -6 -6 -6 -5 -5 -5 -5 -5 -5 -4 -4 -4 -4 -3 -3 -2 -1 ------- Run | Yrd Mat Sub Mat Fac Fac Low Low Zio Pro Fac Ext Cet Arc Hub Fac Upp Upp War Pro Res Res Acc Slots Evolved 18 | . . . 4 2 2 . . . . 2 . . . . 2 . . . . 2 2 2 Power 1 | . . . . . . . . . . . . . . . 1 . . . . . . . Propulsion 4 | . . . 2 2 . . . . . . . . . . . . . . . . . . Utility 9 | . . . 1 . 2 . . . . 1 . . . . 1 . . . . 2 1 1 Weapon 4 | . . . 1 . . . . . . 1 . . . . . . . . . . 1 1 Parts Attached 248 | 7 15 16 22 15 10 5 2 4 1 18 20 13 1 . 9 2 1 7 . 3 29 48 Power 22 | 1 1 2 4 2 1 . . . . 1 1 1 . . 1 . . 1 . . 3 3 Engine 9 | 1 . 2 3 2 1 . . . . . . . . . . . . . . . . . Core 4 | . 1 . 1 . . . . . . 1 1 . . . . . . . . . . . Reactor 9 | . . . . . . . . . . . . 1 . . 1 . . 1 . . 3 3 Propulsion 52 | 2 1 5 6 2 1 2 . 2 1 5 7 3 . . . . . . . . 4 11 Treads 44 | 2 1 3 5 2 . 2 . 1 1 4 7 3 . . . . . . . . 3 10 Leg 2 | . . . . . . . . 1 . 1 . . . . . . . . . . . . Wheel 5 | . . 2 1 . 1 . . . . . . . . . . . . . . . 1 . Hover 1 | . . . . . . . . . . . . . . . . . . . . . . 1 Flight . | . . . . . . . . . . . . . . . . . . . . . . . Utility 93 | 2 5 1 4 3 5 3 2 1 . 7 6 3 . . 8 2 1 5 . 2 13 20 Device 43 | 1 1 1 1 3 2 1 . 1 . 4 2 1 . . 4 2 1 3 . . 5 10 Storage 7 | 1 2 . 1 . . . . . . 1 . . . . . . . . . 1 . 1 Processor 18 | . . . . . 1 2 . . . . . . . . 2 . . 2 . 1 5 5 Hackware 3 | . 1 . 1 . . . 1 . . . . . . . . . . . . . . . Protection 22 | . 1 . 1 . 2 . 1 . . 2 4 2 . . 2 . . . . . 3 4 Artifact . | . . . . . . . . . . . . . . . . . . . . . . . Weapon 81 | 2 8 8 8 8 3 . . 1 . 5 6 6 1 . . . . 1 . 1 9 14 Energy Gun 15 | 2 2 2 . . . . . . . . . 1 . . . . . 1 . . 1 6 Energy Cannon 5 | . . . . 1 . . . . . 1 . . . . . . . . . . . 3 Ballistic Gun 39 | . 5 . 6 3 3 . . . . 3 4 5 1 . . . . . . . 6 3 Ballistic Cannon 3 | . . 3 . . . . . . . . . . . . . . . . . . . . Launcher 10 | . 1 1 2 3 . . . . . . 1 . . . . . . . . . 1 1 Special Weapon 1 | . . . . . . . . . . . 1 . . . . . . . . . . . Impact Weapon 3 | . . 1 . 1 . . . . . . . . . . . . . . . 1 . . Slashing Weapon 3 | . . 1 . . . . . . . 1 . . . . . . . . . . . 1 Piercing Weapon 2 | . . . . . . . . 1 . . . . . . . . . . . . 1 . Special Melee Weapon . | . . . . . . . . . . . . . . . . . . . . . . . Unidentified Prototypes 45 | . 2 . 2 3 . . . 1 . 7 . 4 . . 2 . . 5 . 1 15 3 Corrupted Parts 3 | . . . . . . . . . . . . 3 . . . . . . . . . . System Corruption 5 | . . . . . . . . . . . . 5 . . . . . . . . . . Parts Lost 86 | . 1 10 . 12 . 3 . . . 4 6 . . . . . 4 . . . 1 45 Power 7 | . 1 1 . . . . . . . . . . . . . . 1 . . . . 4 Propulsion 25 | . . 4 . 6 . 2 . . . 2 2 . . . . . . . . . . 9 Utility 27 | . . 1 . 3 . 1 . . . 1 1 . . . . . 2 . . . . 18 Weapon 27 | . . 4 . 3 . . . . . 1 3 . . . . . 1 . . . 1 14 Highest Loss Streak 16 | . 1 4 . 9 . 1 . . . 1 3 . . . . . 4 . . . 1 16 To Critical Strikes 2 | . . . . . . . . . . . . . . . . . . . . . . 2 Average Backups 19 | . 10 14 15 22 17 21 21 23 22 22 22 23 23 24 23 24 22 22 24 23 23 18 Power . | . . . . . . . 1 1 1 1 . . 1 1 . . . . 1 . . 2 Propulsion 1 | . 1 1 1 2 1 . . 1 1 1 3 1 1 2 2 2 2 2 2 2 2 3 Utility 9 | . 3 5 6 9 10 13 12 13 12 11 10 12 12 12 11 13 11 11 13 13 12 7 Weapon 6 | . 4 5 6 8 5 6 6 7 7 7 5 7 8 8 8 8 7 7 7 7 7 3 Tool/Special . | . . . . . . . . . . . . . . . . . . . . . . . Unused Backups 64 | . 2 2 8 4 1 . . 5 3 8 7 2 . . 1 . . 1 . . 9 11 Power 5 | . . . . 1 . . . . 1 . 1 . . . . . . . . . . 2 Propulsion 11 | . . . 1 . . . . 1 . 1 1 1 . . . . . . . . 4 2 Utility 34 | . 2 . 2 2 1 . . 2 2 6 5 . . . 1 . . . . . 5 6 Weapon 13 | . . 2 5 1 . . . 2 . 1 . 1 . . . . . 1 . . . . Tool/Special 1 | . . . . . . . . . . . . . . . . . . . . . . 1 Average Slot Usage (%) 88 | . 99 99 96 98 69 78 75 91 84 87 90 89 82 82 80 83 77 80 78 76 82 76 Engine 3 | . 6 12 8 7 2 6 6 6 6 1 . . . . . . . 2 . . . . Core 1 | . 7 1 . . . . . . . 3 5 1 . . . . . . . . . . Reactor 2 | . . . . . . . . . . . . 4 5 5 7 10 6 4 5 4 4 7 Treads 23 | . 28 23 32 45 13 12 13 19 22 28 30 24 17 17 15 15 15 15 15 14 13 10 Wheel 1 | . . 4 . . 6 6 5 6 3 . . . . . . . . . . . . . Device 10 | . 13 13 9 13 13 17 6 6 6 5 4 6 5 5 8 9 8 9 10 14 15 13 Storage 7 | . 14 14 10 8 6 6 6 6 6 5 5 5 5 5 5 5 5 7 5 4 4 5 Processor 6 | . . . . . 1 7 6 6 6 5 5 5 5 5 10 10 10 12 15 14 17 13 Protection 5 | . . . 2 . 4 . 2 6 6 10 12 15 17 17 11 10 9 5 4 4 5 6 Energy Gun 3 | . 18 16 . . . . . . . . . . . . . . . . . . . 2 Ballistic Gun 17 | . 8 . 22 21 18 19 14 13 19 20 22 22 23 23 20 21 16 19 21 17 20 14 Peak Build Rating 225 | 7 27 28 40 53 63 65 65 76 72 101 103 144 140 139 158 158 158 171 171 186 210 225 Average Rating 93 | 5 12 24 35 49 51 62 61 70 67 95 94 118 138 139 148 155 148 161 170 172 198 181 On Entrance 97 | . 7 27 24 40 13 63 65 63 72 71 99 89 138 139 139 155 158 151 171 171 182 210 Avg Prop Armor Cover (%) 14 | . . 12 2 . 14 15 14 19 11 14 2 6 . . . . . . . . . . Naked Turns 16 | . . . . . . . . . . . . . . . . . . . . . . 16 Heaviest Build 201 | 15 32 32 119 119 110 108 105 106 126 141 145 145 146 146 166 164 164 162 148 164 183 201 Greatest Support 240 | 40 40 40 80 120 28 28 28 28 93 153 159 240 240 240 240 240 240 240 240 240 240 230 Greatest Overweight (x) 4 | 1 . 1 1 1 3 3 3 3 4 4 1 . . . . . . . . . 1 1 Average Overweight (x) . | . . . . . 3 3 3 3 2 . . . . . . . . . . . . . Largest Inventory Capacity 25 | 8 15 15 25 25 25 25 25 25 25 25 25 25 25 25 25 25 25 25 25 25 25 25 Average Capacity 22 | 7 11 15 16 25 25 25 25 25 25 25 25 25 25 25 25 25 25 25 25 25 25 23 Most Carried 25 | 3 15 15 22 25 22 23 25 25 25 25 25 25 25 25 25 25 25 25 25 25 25 25 Average Carried 20 | . 10 14 15 24 18 22 22 24 23 24 24 24 24 25 24 24 23 23 25 24 24 20 Final Capacity 25 | 8 15 15 25 25 25 25 25 25 25 25 25 25 25 25 25 25 25 25 25 25 25 5 Final Carried 25 | 2 15 12 21 24 21 23 22 25 25 24 25 24 25 25 25 25 22 25 25 24 25 5 Class Distribution -------------------- 39% | Scavenger-Tank 20% | Mutant 6% | Scavenger-Executioner 5% | Gunner 5% | Scavenger-Skirmisher 5% | Scavenger-Gunner 5% | Scavenger-Mutant 4% | Tank Dominant Class ---------------- Mutant | -10/Materials Mutant | -10/Subcaves Gunner | -8/Materials Scavenger-Skirmisher | -7/Factory Tank | -6/Factory Skirmisher | -6/Lower Caves Mutant | -6/Lower Caves Scavenger-Mutant | -6/Zion Scavenger-Gunner | -5/Proximity Caves Scavenger-Tank | -5/Factory Scavenger-Tank | -5/Extension Scavenger-Tank | -5/Cetus Scavenger-Tank | -5/Archives Scavenger-Tank | -5/Hub_04(d) Scavenger-Tank | -4/Factory Scavenger-Tank | -4/Upper Caves Scavenger-Tank | -4/Upper Caves Scavenger-Tank | -4/Warlord Scavenger-Tank | -3/Proximity Caves Scavenger-Tank | -3/Research Scavenger-Tank | -2/Research Scavenger-Executioner | -1/Access Resources | -11 -10 -10 -8 -7 -6 -6 -6 -6 -5 -5 -5 -5 -5 -5 -4 -4 -4 -4 -3 -3 -2 -1 ----------- Run | Yrd Mat Sub Mat Fac Fac Low Low Zio Pro Fac Ext Cet Arc Hub Fac Upp Upp War Pro Res Res Acc Matter Collected 19033 | 270 581 588 1955 990 478 878 582 299 524 1799 1230 929 175 51 426 371 237 701 735 199 1591 3444 Remotely 1409 | . . . . . . . . . . 111 . . . . . . . 232 . . . 1066 Salvage Created 21488 | 93 1066 529 1310 894 144 401 462 67 384 2185 1855 638 131 . 863 670 238 1276 660 536 1654 5432 Parts 953 | 8 55 36 57 44 8 11 12 3 20 95 86 27 5 . 54 35 14 51 29 19 62 222 Haulers Intercepted 9 | . 2 . 5 . . . . . . . . . . . 1 . . . . . 1 . Recyclers Shooed 21 | . . . 2 2 . . . . . 8 1 . . . 1 . . . . . . 7 Parts Field Recycled . | . . . . . . . . . . . . . . . . . . . . . . . Retrieved Matter . | . . . . . . . . . . . . . . . . . . . . . . . Parts Self-Destructed 132 | . . 4 . . . 22 10 2 18 . . . . . . 35 12 . 29 . . . Prevented 7 | . . 4 . . . . . . . . . . . . . . 3 . . . . . Parts Restored . | . . . . . . . . . . . . . . . . . . . . . . . Kills | -11 -10 -10 -8 -7 -6 -6 -6 -6 -5 -5 -5 -5 -5 -5 -4 -4 -4 -4 -3 -3 -2 -1 ------- Run | Yrd Mat Sub Mat Fac Fac Low Low Zio Pro Fac Ext Cet Arc Hub Fac Upp Upp War Pro Res Res Acc Combat Hostiles Destroyed 332 | . 13 16 20 25 1 11 6 . 15 27 22 6 1 . 16 15 6 15 9 5 29 74 Melee 11 | . 1 . . 1 . . . . . . . . . . . . . . . . . 9 Guns 223 | . 11 10 10 10 1 7 6 . 13 27 19 6 1 . 6 12 2 15 9 5 17 36 Cannons 1 | . . 1 . . . . . . . . . . . . . . . . . . . . AOE 92 | . . 5 10 14 . 4 . . 2 . 3 . . . 10 3 4 . . . 11 26 Classes Destroyed 27 | 2 6 3 1 4 . 1 . . 1 . 2 . . . 1 . . 2 . . 2 2 Worker 21 | . 3 . 3 2 . . . . . 4 . . . . 3 . . . . . . 6 Builder 17 | . 2 . . . . . . . . 2 . . . . 4 . . . . . . 9 Tunneler 3 | 2 . . . . . . . . . . . . . . . . . . . . . 1 Hauler 9 | . 2 . 5 . . . . . . . . . . . 1 . . . . . 1 . Recycler 32 | 1 2 . 4 4 1 . . . . 8 5 . . . 2 . . . . 1 . 4 Mechanic 3 | . . . . . . . . . . . . . . . . . . 1 . . . 2 Operator 4 | . 1 . 1 . . . . . . . 1 . 1 . . . . . . . . . Drone 2 | . . . . . . . . . 2 . . . . . . . . . . . . . Watcher 11 | . 2 . . . . . . . . 3 2 2 . . . . . . . 1 . 1 Swarmer 89 | . . 3 . 7 . 4 2 . 7 13 6 . . . 11 7 5 . . . 9 15 Grunt 111 | . 13 . 15 9 . 5 3 . 4 5 5 2 . . 1 5 . 4 4 5 4 27 Brawler 7 | . . . 1 . . . . . . . . . . . . . . 2 1 . . 3 Duelist 10 | . . . . . . 1 . . . . . . . . . . . 1 1 . 1 6 Protector 5 | . . . . 1 . . . . . . . . . . . . . 3 . . . 1 Sentry 30 | . . 1 4 2 . 1 1 . 1 3 4 . 1 . 2 1 1 . 1 . 3 4 Demolisher 1 | . . . . . . . . . . . . . . . . . . . . . 1 . Specialist 1 | . . . . 1 . . . . . . . . . . . . . . . . . . Hunter 15 | . . . . 2 . 1 1 . . 4 3 . . . 1 . . . 2 . . 1 Programmer 29 | . . . . 3 1 . . . 1 2 . . . . . 2 . 3 . . 2 15 Heavy 1 | . . . . . . . . . . . . . . . 1 . . . . . . . Behemoth 5 | . . . . . . . . . . . 2 . . . . . . 1 . . 1 1 Cetus Guard 4 | . . . . . . . . . . . . 4 . . . . . . . . . . Investigator 1 | . . . . . . . . . . . . . . . . . . . . . . 1 Striker 3 | . . . . . . . . . . . . . . . . . . . . . 2 1 Executioner 7 | . . . . . . . . . . . . . . . . . . 1 . . 6 . Subdweller 12 | . . 12 . . . . . . . . . . . . . . . . . . . . Packrat 3 | . . . . . . . 2 . . . . . . . . . 1 . . . . . Thug 1 | . . . . . . . . . . . . 1 . . . . . . . . . . Savage 1 | . . . . . . . . . . . . 1 . . . . . . . . . . Butcher 1 | . . . . . . . . . . . . 1 . . . . . . . . . . Martyr 1 | . . . . . . . . . . . . . . . . . . . . . 1 . Fireman 2 | . . . . . . . . . . . 2 . . . . . . . . . . . Dragon 1 | . . . . . . . . . . . . . . . . . . . . . . 1 Best Kill Streak 20 | 3 4 4 6 6 1 3 6 . 6 10 6 3 2 . 6 5 4 9 4 4 11 20 Combat Bots Only 13 | . 4 4 6 5 1 3 6 . 6 6 6 2 1 . 4 5 4 9 4 4 11 13 Max Kills in Single Turn 6 | 1 1 2 2 4 1 3 2 . 3 2 3 3 1 . 5 3 3 3 1 2 6 5 Gunslinging 2 | . . . . . . 1 . . 1 1 . 2 . . . 1 . 1 . . 1 2 Exploded 6 | . . 2 2 4 . 3 . . 1 . 3 . . . 4 3 3 . . . 6 4 Melee 1 | . 1 . . 1 . . . . . . . . . . . . . . . . . 1 Uniques/NPCs Destroyed . | . . . . . . . . . . . . . . . . . . . . . . . Combat | -11 -10 -10 -8 -7 -6 -6 -6 -6 -5 -5 -5 -5 -5 -5 -4 -4 -4 -4 -3 -3 -2 -1 -------- Run | Yrd Mat Sub Mat Fac Fac Low Low Zio Pro Fac Ext Cet Arc Hub Fac Upp Upp War Pro Res Res Acc Hostile Shots Fired 1828 | . 59 58 71 210 2 17 21 . 86 121 128 18 3 . 48 34 67 28 35 43 93 686 Missed 467 | . 14 14 18 67 . 5 5 . 23 26 26 3 . . 21 10 15 10 4 15 18 173 Intercepted 1 | . . . . . . . . . . . . . . . . . . . . . 1 . Hits 1361 | . 45 44 53 143 2 12 16 . 63 95 102 15 3 . 27 24 52 18 31 28 75 513 Melee 22 | . . . . 6 . . . . . . . . . . . . . . . . 4 12 Projectile 1339 | . 45 44 53 137 2 12 16 . 63 95 102 15 3 . 27 24 52 18 31 28 71 501 AOE 3 | . . . . . . . . . . . . . . . . . . . . . 2 1 Critical Strikes 57 | . . . 3 3 . . 1 . 7 2 4 3 . . . . 1 2 3 . 2 26 Actively Blocked 1 | . . . . . . . . . . . . . . . . . . . . . . 1 Part Disruptions 2 | . . . . . . . . . . . 1 . . . . . . . . . . 1 Damage Taken 25876 | . 570 1109 837 1991 53 270 293 . 1205 1353 1964 319 76 . 486 385 1237 291 518 510 1623 10786 Core 2784 | . 92 223 118 174 . 51 51 . 51 62 54 . . . 52 11 61 52 41 10 97 1584 Absorbed by Shields 1156 | . . . . . . . . . . . . 60 . . . . . 197 . . 701 198 Reduced by Siege Mode 396 | . . . . . . . . . . 35 90 6 . . . 3 6 . 46 18 83 109 Redirected to Shielding 99 | . . . . . . . . . . . . . . . . . . . . . . 99 Ignored by Resistances 2998 | . . . 46 78 . 18 21 . 72 29 96 11 . . 5 18 23 39 48 63 179 2252 Regen/Repaired (Parts) 2529 | . . . 164 . . . . 805 . 133 . . . . . . . 474 . . 953 . Core Remaining (%) 83 | 100 . 41 92 74 . . . . 81 . . . . 88 . . . . 80 99 93 . Volleys Fired 749 | 8 76 39 80 49 8 18 10 4 24 79 60 17 4 3 27 12 16 29 17 10 46 113 Largest 6 | 2 2 2 3 3 3 3 3 1 3 4 4 4 4 4 4 4 4 4 4 4 5 6 Hottest 278 | 100 100 90 83 81 86 86 84 30 84 123 132 132 138 140 210 140 140 140 140 140 181 278 Shots Fired 2223 | 16 149 68 194 115 11 39 30 4 69 256 210 69 16 12 86 45 29 116 68 40 200 381 Gun 2055 | 16 146 50 159 105 11 31 30 4 66 244 207 69 16 12 77 44 20 116 68 40 196 328 Cannon 84 | . . 8 19 . . . . . . 12 . . . . 4 . 5 . . . . 36 Launcher 84 | . 3 10 16 10 . 8 . . 3 . 3 . . . 5 1 4 . . . 4 17 Special . | . . . . . . . . . . . . . . . . . . . . . . . Kinetic 1937 | . 72 8 178 105 11 31 30 4 66 244 207 69 16 12 77 44 20 116 68 40 196 323 Thermal 104 | 16 34 . . . . . . . . 12 . . . . 4 . 5 . . . . 33 Explosive 84 | . 3 10 16 10 . 8 . . 3 . 3 . . . 5 1 4 . . . 4 17 Electromagnetic 98 | . 40 50 . . . . . . . . . . . . . . . . . . . 8 Robot Hit Streak 60 | 5 20 19 20 11 5 6 14 4 5 15 28 12 5 4 15 11 12 16 16 15 22 60 Robot Miss Streak 17 | 3 4 2 5 9 4 7 5 . 17 15 2 5 2 3 4 2 1 2 1 1 5 4 Penetration Max 1 | . . . . . . 1 . . . 1 1 1 1 . 1 1 . 1 . 1 1 1 Secondary Targets 54 | . . 1 . . . 3 2 . 4 4 6 3 . . . 3 . 6 4 1 7 10 Max Gunslinging Chain 2 | . . 1 . . . 1 1 . 1 1 1 2 . . . 1 . 2 1 1 2 2 Shots Hit Robots 1603 | 10 101 53 131 81 9 27 31 4 62 167 150 41 11 6 44 30 18 95 54 25 147 306 Core Hits 1288 | 4 44 35 66 81 3 49 52 1 86 163 77 28 6 2 40 24 16 49 22 15 117 308 Critical Kills 47 | . . . 1 . . 1 . . . 1 2 2 1 . 4 5 . 7 6 1 8 8 Critical Parts Destroyed 52 | . . . . . . . . . . 1 4 . . 1 2 6 . 16 3 3 6 10 Critical Strikes 108 | 1 2 . 2 . . 1 . . . 2 6 2 1 1 6 11 . 24 9 4 18 18 Burn 3 | 1 2 . . . . . . . . . . . . . . . . . . . . . Meltdown 1 | . . . . . . . . . . . . . . . . . . . . . . 1 Destroy 103 | . . . 1 . . 1 . . . 2 6 2 1 1 6 11 . 24 9 4 18 17 Sever 1 | . . . 1 . . . . . . . . . . . . . . . . . . . Melee Attacks 121 | . . 23 6 6 2 . 3 1 . 3 . . . . . . 5 . . 1 1 70 Impact 37 | . . 21 . 6 2 . 3 1 . 3 . . . . . . . . . 1 . . Slashing 75 | . . 2 6 . . . . . . . . . . . . . . . . . . 67 Piercing 9 | . . . . . . . . . . . . . . . . . 5 . . . 1 3 Sneak Attacks 13 | . . . 4 2 1 . 2 . . . . . . . . . . . . . . 4 Combat Hostiles . | . . . . . . . . . . . . . . . . . . . . . . . Follow-up Attacks . | . . . . . . . . . . . . . . . . . . . . . . . Damage Inflicted 58134 | 139 1472 1710 3399 3993 169 1086 735 84 1258 3528 4082 1434 316 146 2671 1376 1108 3420 1279 842 5859 18028 Guns 36750 | 139 1375 614 1786 1313 64 435 548 84 1146 3486 3750 1434 316 146 1402 1052 343 3420 1279 803 3806 8009 Cannons 782 | . . 122 171 . . . . . . . . . . . 34 . . . . . . 455 Explosions 16861 | . 95 974 1143 2363 . 651 . . 103 42 313 . . . 1207 324 513 . . . 1983 7150 Melee 3396 | . . . 299 227 105 . 187 . . . . . . . . . 252 . . . . 2326 Ramming 345 | . 2 . . 90 . . . . 9 . 19 . . . 28 . . . . 39 70 88 Kinetic 35452 | . 605 122 1957 1313 64 435 548 84 1146 3486 3750 1434 316 146 1402 1052 343 3420 1279 803 3806 7941 Thermal 1902 | 139 383 131 . 859 . . . . . . . . . . 34 . . . . . . 356 Explosive 15695 | . 38 843 1143 1504 . 651 . . 103 . 313 . . . 1207 324 513 . . . 1983 7073 Electromagnetic 1344 | . 444 614 . . . . . . . 42 . . . . . . . . . . . 244 Impact 519 | . . . . 227 105 . 187 . . . . . . . . . . . . . . . Slashing 2625 | . . . 299 . . . . . . . . . . . . . . . . . . 2326 Piercing 252 | . . . . . . . . . . . . . . . . . 252 . . . . . Highest Corruption 30 | . . . 11 2 2 2 . . 1 2 2 5 . . 18 18 18 18 1 1 13 30 Average Corruption 7 | . . . 11 2 2 1 . . 1 1 2 3 . . 18 18 18 5 1 1 8 13 Corruption Purged 7 | . . . . . . 2 . . . . . 5 . . . . . . . . . . Corruption Blocked . | . . . . . . . . . . . . . . . . . . . . . . . Effects 229 | . . . 14 8 4 1 . . 5 14 13 2 . . 6 20 25 6 . 1 34 76 Message Errors 58 | . . . 4 2 1 . . . 2 5 1 . . . 1 5 4 2 . . 8 23 Matter Fused 34 | . . . 3 2 1 . . . . 4 4 . . . . 4 2 1 . 1 6 6 Heat Flow Errors 27 | . . . 1 1 . . . . 1 1 3 . . . 1 2 3 2 . . 4 8 Energy Discharges 24 | . . . . 1 . . . . . 2 1 . . . 1 1 6 . . . 5 7 Parts Rejected 5 | . . . . . . 1 . . . . 1 . . . . . . . . . . 3 Parts Fused 1 | . . . . . . . . . . . . . . . . 1 . . . . . . Data Loss (minor) 20 | . . . 1 1 1 . . . 1 2 2 1 . . . 2 3 . . . 1 5 Data Loss (major) 7 | . . . 1 . . . . . . . 1 1 . . . 1 1 . . . 1 1 Misfires 19 | . . . 2 1 1 . . . . . . . . . 1 2 1 . . . 5 6 Alerts 8 | . . . 1 . . . . . 1 . . . . . . . 2 1 . . . 3 Misdirections 4 | . . . . . . . . . . . . . . . 1 . . . . . . 3 Weapon Failures 22 | . . . 1 . . . . . . . . . . . 1 2 3 . . . 4 11 Overload Shots . | . . . . . . . . . . . . . . . . . . . . . . . Overflow Damage 1061 | . . 28 71 132 75 48 66 . 21 . 49 . . . 42 4 29 . . 9 31 456 Projectiles 14 | . . . 1 . . . . . . . . . . . . . . . . . . 13 Explosions 600 | . . 28 28 120 . 48 . . 21 . 49 . . . 42 4 29 . . . . 231 Melee 447 | . . . 42 12 75 . 66 . . . . . . . . . . . . 9 31 212 Knockbacks 3 | . . 1 . 1 . . . . . . . . . . . . . . . 1 . . Impact 2 | . . . . 1 . . . . . . . . . . . . . . . 1 . . Kinetic 1 | . . 1 . . . . . . . . . . . . . . . . . . . . Secondary . | . . . . . . . . . . . . . . . . . . . . . . . Self-Inflicted Damage 845 | . . 46 39 . . 31 . . 65 . . . . . . . 55 . . . . 609 Shots 21 | . . 2 3 . . 1 . . 2 . . . . . . . 1 . . . . 12 Rammed 21 | . . . . 3 . . . . 1 . 1 . . . 2 . . . . 1 2 11 Targets Rammed 23 | . 1 . . 4 . . . . 1 . 1 . . . 2 . . . . 1 2 11 Kicked . | . . . . . . . . . . . . . . . . . . . . . . . Crushed 2 | . 1 . . 1 . . . . . . . . . . . . . . . . . . Highest Temperature 391 | 234 348 . 116 249 . . 10 . 239 391 220 4 . . 81 195 169 246 31 10 200 200 Average Temperature 67 | 98 97 . 47 135 . . 10 . 110 91 44 2 . . 21 41 31 115 11 9 61 54 Received Heat Transfer 3881 | . 315 180 441 324 . 81 108 . 387 135 516 25 . . . 54 54 29 108 177 89 858 Effects 2 | . 1 . . . . . . . . . . . . . . . . . . . . 1 Energy Bleed 2 | . 1 . . . . . . . . . . . . . . . . . . . . 1 Siege Activations 33 | . . . . . . . . . . 2 6 1 . . 1 1 1 . 4 2 3 12 Total Turns 482 | . . . . . . . . . . 61 108 19 . . 2 10 12 . 46 14 77 133 Longest Duration 57 | . . . . . . . . . . 57 44 19 . . 2 10 12 . 22 11 48 23 Martial Activations . | . . . . . . . . . . . . . . . . . . . . . . . Shielding Activations . | . . . . . . . . . . . . . . . . . . . . . . . Robots Disrupted . | . . . . . . . . . . . . . . . . . . . . . . . Combat Hostiles . | . . . . . . . . . . . . . . . . . . . . . . . Robots Corrupted 2 | . 1 . . . . . . . . . . . . . . . . . . 1 . . Combat Hostiles 1 | . 1 . . . . . . . . . . . . . . . . . . . . . Parts Fried 9 | . 2 4 . . . . . . . . . . . . . . . 1 . 2 . . Impact Corruptions 7 | . . . . 1 1 . 2 . . . . . . . . . . . . 1 1 1 Robots Melted 1 | . . . . . . . . . . . . . . . . . . . . . . 1 Combat Hostiles 1 | . . . . . . . . . . . . . . . . . . . . . . 1 Parts Melted 7 | 2 . 2 . 1 . . . . . . . . . . 1 . . 1 . . . . Heat Transferred 2742 | 481 1210 150 . 550 . . . . . . . . . . 37 . . . . . . 314 Parts Sabotaged . | . . . . . . . . . . . . . . . . . . . . . . . Parts Stolen . | . . . . . . . . . . . . . . . . . . . . . . . Parts Stripped 5 | . . . . . . . . . . . . . . . . . . . . . . 5 Power Chain Reactions 4 | . 2 2 . . . . . . . . . . . . . . . . . . . . Alert | -11 -10 -10 -8 -7 -6 -6 -6 -6 -5 -5 -5 -5 -5 -5 -4 -4 -4 -4 -3 -3 -2 -1 ------- Run | Yrd Mat Sub Mat Fac Fac Low Low Zio Pro Fac Ext Cet Arc Hub Fac Upp Upp War Pro Res Res Acc Maximum Alert Level 5 | . . . 2 3 1 . . . . 2 1 1 1 1 5 . . . . . 2 5 Low Security (%) 46 | 100 100 . 41 57 . . . . . 21 52 79 33 86 18 . . . . 100 52 . Level 1 30 | . . . 44 31 100 . . . . 65 47 20 66 13 16 . . . . . 8 14 Level 2 14 | . . . 14 10 . . . . . 13 . . . . 19 . . . . . 38 34 Level 3 2 | . . . . . . . . . . . . . . . 27 . . . . . . 11 Level 4 2 | . . . . . . . . . . . . . . . 12 . . . . . . 11 Level 5 . | . . . . . . . . . . . . . . . 5 . . . . . . 1 High Security 3 | . . . . . . . . . . . . . . . . . . . . . . 25 Max Security . | . . . . . . . . . . . . . . . . . . . . . . . Peak Influence 2636 | 10 141 . 445 717 338 . . . . 450 319 248 249 204 1706 . . . . 82 658 2636 Initial 450 | . . . . 191 310 . . . . 450 192 67 55 76 89 . . . . 22 . 386 Average 342 | 1 39 . 226 212 287 . . . . 272 191 153 195 115 669 . . . . 32 222 1126 Influence Increases 14931 | 15 548 80 893 1186 217 358 145 5 290 1408 919 401 214 168 1971 330 137 538 200 130 994 3784 Destroy 0b10 Robot/C 7660 | . 260 80 400 480 120 300 140 . 260 540 560 220 80 40 560 300 120 380 180 100 580 1960 Destroy 0b10 Robot/NC 575 | 15 60 . 65 35 5 . . 5 10 85 55 10 5 5 55 . 5 20 . 10 5 125 Destroy Leader 1164 | . 78 . 100 110 30 30 . . 20 106 46 10 . 10 124 30 12 . 20 12 132 294 Allied During Kill 1486 | . . . . . 43 28 5 . . . 78 130 85 55 651 . . 93 . . . 318 Successful Hack 172 | . 30 . 45 57 . . . . . 7 23 . . . 10 . . . . . . . Select Force Hacks 30 | . 30 . . . . . . . . . . . . . . . . . . . . . Disable Machine 735 | . 30 . 45 225 15 . . . . 60 30 15 30 30 135 . . . . . 15 105 Anti-Garrison Action 150 | . . . . . . . . . . . . . . . 150 . . . . . . . Destroy Structure 1242 | . 15 . 74 81 4 . . . . 40 82 16 14 28 286 . . . . 8 12 582 Advance Influence 450 | . . . . . . . . . . 450 . . . . . . . . . . . . Partial Spotted 30 | . . . . . . . . . . . . . . . . . . . . . . 30 Lose Combat Pursuer 555 | . 45 . . 60 . . . . . 120 45 . . . . . . 45 . . 60 180 Miscellaneous 682 | . . . 164 138 . . . . . . . . . . . . . . . . 190 190 Influence Decreases 12295 | 15 447 181 473 971 535 467 334 24 290 1014 1192 384 133 203 509 800 502 943 572 164 350 1792 Entered New Map 3679 | . . 49 . 229 325 119 40 19 . . 202 54 83 143 95 610 224 811 406 12 . 258 Time Decay 6416 | 15 437 132 473 622 190 318 294 5 290 574 630 270 50 60 334 190 238 62 166 152 340 574 Search Patrol Dispatched 100 | . . . . . . . . . . 100 . . . . . . . . . . . . Lost Part 760 | . 10 . . 120 . 30 . . . 40 60 . . . . . 40 . . . 10 450 Lost Ally 740 | . . . . . 20 . . . . . 150 60 . . 80 . . 70 . . . 360 Purge Threat 600 | . . . . . . . . . . 300 150 . . . . . . . . . . 150 Squads Dispatched 89 | . 4 . 7 9 3 . . . . 3 3 1 . 1 11 . . . . . 3 44 Investigation 9 | . 2 . 4 1 . . . . . . . 1 . . . . . . . . 1 . Extermination 11 | . . . . 3 1 . . . . 2 . . . . 1 . . . . . . 4 Reinforcement 24 | . 2 . 3 3 2 . . . . 1 3 . . 1 4 . . . . . 2 3 Assault 31 | . . . . 1 . . . . . . . . . . 3 . . . . . . 27 Garrison 14 | . . . . 1 . . . . . . . . . . 3 . . . . . . 10 Intercept . | . . . . . . . . . . . . . . . . . . . . . . . Searches Triggered 1 | . . . . . . . . . . 1 . . . . . . . . . . . . Construction Impeded 4 | . . . . 1 . . . . . . 3 . . . . . . . . . . . Haulers Reinforced 4 | . . . . . 1 . . . . . . . . . 1 . . . . . . 2 Active Scanning Responses . | . . . . . . . . . . . . . . . . . . . . . . . Cargo Convoy Interrupts 2 | . . . . 1 . . . . . . . . . . 1 . . . . . . . Stealth | -11 -10 -10 -8 -7 -6 -6 -6 -6 -5 -5 -5 -5 -5 -5 -4 -4 -4 -4 -3 -3 -2 -1 --------- Run | Yrd Mat Sub Mat Fac Fac Low Low Zio Pro Fac Ext Cet Arc Hub Fac Upp Upp War Pro Res Res Acc Distress Signals 27 | . . . 2 . 1 . . . 1 1 1 1 . . 2 . . 1 . 1 10 6 Communications Jammed 25 | . . . . . . . . . . . . . . . . . . . . . 1 24 Distress Signals 21 | . . . . . . . . . . . . . . . . . . . . . 1 20 Times Spotted 573 | . 25 16 21 29 5 14 7 . 19 40 36 12 3 2 37 14 7 63 7 8 52 156 Peak Tracking Total 15 | . 5 3 3 9 4 4 7 . 10 5 7 5 1 2 11 4 6 11 4 3 14 15 Tactical Retreats 25 | . 1 1 . 4 . . . . . 6 2 . . . . . . 2 . . 1 8 Traps | -11 -10 -10 -8 -7 -6 -6 -6 -6 -5 -5 -5 -5 -5 -5 -4 -4 -4 -4 -3 -3 -2 -1 ------- Run | Yrd Mat Sub Mat Fac Fac Low Low Zio Pro Fac Ext Cet Arc Hub Fac Upp Upp War Pro Res Res Acc Traps Triggered 7 | . 1 3 . 1 1 . . . . . . . . . . . . . . 1 . . Indirectly . | . . . . . . . . . . . . . . . . . . . . . . . Trap Hack Attempts . | . . . . . . . . . . . . . . . . . . . . . . . Triggered . | . . . . . . . . . . . . . . . . . . . . . . . Disarmed . | . . . . . . . . . . . . . . . . . . . . . . . Reprogrammed . | . . . . . . . . . . . . . . . . . . . . . . . Reused . | . . . . . . . . . . . . . . . . . . . . . . . Traps Extracted . | . . . . . . . . . . . . . . . . . . . . . . . Installed . | . . . . . . . . . . . . . . . . . . . . . . . Triggered . | . . . . . . . . . . . . . . . . . . . . . . . Machines | -11 -10 -10 -8 -7 -6 -6 -6 -6 -5 -5 -5 -5 -5 -5 -4 -4 -4 -4 -3 -3 -2 -1 ---------- Run | Yrd Mat Sub Mat Fac Fac Low Low Zio Pro Fac Ext Cet Arc Hub Fac Upp Upp War Pro Res Res Acc Machines Disabled 54 | . 2 . 3 15 1 . 1 . . 4 3 2 2 2 10 . . 1 . . 1 7 Max in Single Turn 8 | . 2 . 1 8 1 . 1 . . 2 1 1 1 1 3 . . 1 . . 1 2 Garrison Access 6 | . . . 1 . . . . . . 1 . . . . 1 . . . . . 3 . Energy Cycler 1 | . . . . . . . . . . . . . . . . . . . . . . 1 Machines Repaired . | . . . . . . . . . . . . . . . . . . . . . . . Machines Dismantled 3 | . . . . . . . . . . . 1 1 . . . . . 1 . . . . Machines Sabotaged . | . . . . . . . . . . . . . . . . . . . . . . . Overloaded Fab Kills . | . . . . . . . . . . . . . . . . . . . . . . . Hacking | -11 -10 -10 -8 -7 -6 -6 -6 -6 -5 -5 -5 -5 -5 -5 -4 -4 -4 -4 -3 -3 -2 -1 --------- Run | Yrd Mat Sub Mat Fac Fac Low Low Zio Pro Fac Ext Cet Arc Hub Fac Upp Upp War Pro Res Res Acc Machines Accessed 50 | . 8 . 11 9 . . 1 . 1 6 8 1 . . 3 1 . 1 . . . . Terminals 37 | . 6 . 7 8 . . 1 . 1 3 7 1 . . 2 1 . . . . . . Fabricators 1 | . . . . . . . . . . 1 . . . . . . . . . . . . Repair Stations 4 | . 1 . 1 . . . . . . 1 1 . . . . . . . . . . . Recycling Units 2 | . 1 . 1 . . . . . . . . . . . . . . . . . . . Scanalyzers 2 | . . . 1 1 . . . . . . . . . . . . . . . . . . Garrison Access 3 | . . . 1 . . . . . . 1 . . . . 1 . . . . . . . Total Hacks 130 | . 20 . 40 26 . . 4 . 4 12 13 1 . . 8 1 . 1 . . . . Successful 73 | . 9 . 25 11 . . 4 . 4 8 7 . . . 3 1 . 1 . . . . Failed 56 | . 11 . 14 15 . . . . . 4 6 1 . . 5 . . . . . . . Catastrophic 9 | . . . 4 3 . . . . . . 1 1 . . . . . . . . . . Database Lockouts 1 | . . . 1 . . . . . . . . . . . . . . . . . . . Manual 70 | . 19 . 25 17 . . . . . 1 1 1 . . 6 . . . . . . . Terminals 105 | . 17 . 30 24 . . 4 . 4 7 10 1 . . 7 1 . . . . . . Fabricators 1 | . . . . . . . . . . 1 . . . . . . . . . . . . Repair Stations 11 | . 2 . 4 . . . . . . 2 3 . . . . . . . . . . . Recycling Units 3 | . 1 . 2 . . . . . . . . . . . . . . . . . . . Scanalyzers 5 | . . . 3 2 . . . . . . . . . . . . . . . . . . Garrison Access 4 | . . . 1 . . . . . . 2 . . . . 1 . . . . . . . Terminal Hacks 32 | . 1 . 9 2 . . 4 . 4 4 5 . . . 1 1 . 1 . . . . Record 9 | . . . . . . . 4 . 4 . . . . . . 1 . . . . . . Robot Analysis 2 | . 1 . . . . . . . . 1 . . . . . . . . . . . . Prototype ID Bank 2 | . . . 2 . . . . . . . . . . . . . . . . . . . Open Door 6 | . . . . . . . . . . 1 4 . . . . . . 1 . . . . Branch Access Points 1 | . . . . . . . . . . . . . . . 1 . . . . . . . Emergency Access Points 2 | . . . 2 . . . . . . . . . . . . . . . . . . . Terminal Index 1 | . . . . 1 . . . . . . . . . . . . . . . . . . Unreport Threat 3 | . . . . . . . . . . 2 1 . . . . . . . . . . . Locate Traps 1 | . . . 1 . . . . . . . . . . . . . . . . . . . Dispatch Records 1 | . . . 1 . . . . . . . . . . . . . . . . . . . Patrol Status 1 | . . . 1 . . . . . . . . . . . . . . . . . . . Recall Reinforcements 1 | . . . . 1 . . . . . . . . . . . . . . . . . . Registered Components 1 | . . . 1 . . . . . . . . . . . . . . . . . . . Zone Layout 1 | . . . 1 . . . . . . . . . . . . . . . . . . . Fabricator Hacks 1 | . . . . . . . . . . 1 . . . . . . . . . . . . Network Status 1 | . . . . . . . . . . 1 . . . . . . . . . . . . Repair Station Hacks 7 | . . . 4 . . . . . . 2 1 . . . . . . . . . . . Scan Component 4 | . . . 2 . . . . . . 1 1 . . . . . . . . . . . Repair 3 | . . . 2 . . . . . . 1 . . . . . . . . . . . . Recycling Unit Hacks . | . . . . . . . . . . . . . . . . . . . . . . . Scanalyzer 2 | . . . 1 1 . . . . . . . . . . . . . . . . . . Retrieve Study 2 | . . . 1 1 . . . . . . . . . . . . . . . . . . Garrison Access Hacks 2 | . . . 1 . . . . . . 1 . . . . . . . . . . . . Seal Access 2 | . . . 1 . . . . . . 1 . . . . . . . . . . . . Unauthorized Hacks 29 | . 8 . 10 8 . . . . . . 1 . . . 2 . . . . . . . Terminals 26 | . 7 . 8 8 . . . . . . 1 . . . 2 . . . . . . . Track 1 | . . . 1 . . . . . . . . . . . . . . . . . . . Botnet 8 | . 1 . 2 3 . . . . . . 1 . . . 1 . . . . . . . Operators 2 | . 1 . 1 . . . . . . . . . . . . . . . . . . . Skim 15 | . 5 . 4 5 . . . . . . . . . . 1 . . . . . . . Fabricators . | . . . . . . . . . . . . . . . . . . . . . . . Repair Stations . | . . . . . . . . . . . . . . . . . . . . . . . Recycling Units 3 | . 1 . 2 . . . . . . . . . . . . . . . . . . . Reject 1 | . . . 1 . . . . . . . . . . . . . . . . . . . Recyclers 1 | . . . 1 . . . . . . . . . . . . . . . . . . . Tunnel 1 | . 1 . . . . . . . . . . . . . . . . . . . . . Scanalyzers . | . . . . . . . . . . . . . . . . . . . . . . . Garrison Access . | . . . . . . . . . . . . . . . . . . . . . . . Data Cores Recovered 2 | . . . . 1 . . . . . . 1 . . . . . . . . . . . Used . | . . . . . . . . . . . . . . . . . . . . . . . Hacking Detections 39 | . 7 . 7 8 . . 1 . 1 4 6 2 . . 3 . . . . . . . Full Trace Events . | . . . . . . . . . . . . . . . . . . . . . . . Feedback Events . | . . . . . . . . . . . . . . . . . . . . . . . Feedback Blocked . | . . . . . . . . . . . . . . . . . . . . . . . Robot Schematics Acquired . | . . . . . . . . . . . . . . . . . . . . . . . Robots Built . | . . . . . . . . . . . . . . . . . . . . . . . Authchips . | . . . . . . . . . . . . . . . . . . . . . . . Time . | . . . . . . . . . . . . . . . . . . . . . . . Total Robot Build Rating . | . . . . . . . . . . . . . . . . . . . . . . . Part Schematics Acquired . | . . . . . . . . . . . . . . . . . . . . . . . Parts Built . | . . . . . . . . . . . . . . . . . . . . . . . Authchips . | . . . . . . . . . . . . . . . . . . . . . . . Time . | . . . . . . . . . . . . . . . . . . . . . . . Total Part Build Rating . | . . . . . . . . . . . . . . . . . . . . . . . Part Studies Acquired 2 | . . . 1 1 . . . . . . . . . . . . . . . . . . Parts Repaired 3 | . . . 2 . . . . . . 1 . . . . . . . . . . . . Time 96 | . . . 64 . . . . . . 32 . . . . . . . . . . . . Parts Recycled . | . . . . . . . . . . . . . . . . . . . . . . . Recycled Matter . | . . . . . . . . . . . . . . . . . . . . . . . Retrieved Matter . | . . . . . . . . . . . . . . . . . . . . . . . Retrieved Components . | . . . . . . . . . . . . . . . . . . . . . . . Parts Scanalyzed . | . . . . . . . . . . . . . . . . . . . . . . . Part Schematics Acquired . | . . . . . . . . . . . . . . . . . . . . . . . Parts Damaged . | . . . . . . . . . . . . . . . . . . . . . . . Bothacking | -11 -10 -10 -8 -7 -6 -6 -6 -6 -5 -5 -5 -5 -5 -5 -4 -4 -4 -4 -3 -3 -2 -1 ------------ Run | Yrd Mat Sub Mat Fac Fac Low Low Zio Pro Fac Ext Cet Arc Hub Fac Upp Upp War Pro Res Res Acc Used RIF Installer . | . . . . . . . . . . . . . . . . . . . . . . . Robots Hacked . | . . . . . . . . . . . . . . . . . . . . . . . Non-combat . | . . . . . . . . . . . . . . . . . . . . . . . Combat . | . . . . . . . . . . . . . . . . . . . . . . . Robot Hacks Applied . | . . . . . . . . . . . . . . . . . . . . . . . Relay Couplers Released 10 | . . . . . . . . . . . . . . . 3 . . . . . 3 4 Machine Destruction 6 | . . . . . . . . . . . . . . . 3 . . . . . 3 . Programmers 4 | . . . . . . . . . . . . . . . . . . . . . . 4 Fabnet Peak Effective % . | . . . . . . . . . . . . . . . . . . . . . . . Robots Rewired 12 | . . . . . . . . . . . 7 . . . . . . 5 . . . . Allies Hacked 1 | . . . . . . . . . . . . . . . . . . . . . . 1 Hacks Repelled . | . . . . . . . . . . . . . . . . . . . . . . . Allies | -11 -10 -10 -8 -7 -6 -6 -6 -6 -5 -5 -5 -5 -5 -5 -4 -4 -4 -4 -3 -3 -2 -1 -------- Run | Yrd Mat Sub Mat Fac Fac Low Low Zio Pro Fac Ext Cet Arc Hub Fac Upp Upp War Pro Res Res Acc Total Allies 55 | . . . . . 4 . . . . . 16 5 . . . . . 9 . . . 21 Largest Group 9 | . . . . . 4 3 1 . . . 9 7 6 5 5 . . 5 . . . 5 Highest-Rated Group 630 | . . . . . 164 123 36 . . . 325 630 630 480 480 . . 314 . . . 301 Highest-Rated Ally 159 | . . . . . 41 41 36 . . . 159 159 150 96 96 . . 100 . . . 110 Total Orders 9 | . . . . . . . . . . 2 4 . . . 1 . . . . . . 2 STAY 1 | . . . . . . . . . . . 1 . . . . . . . . . . . FOLLOW 1 | . . . . . . . . . . . 1 . . . . . . . . . . . RETURN 7 | . . . . . . . . . . 2 2 . . . 1 . . . . . . 2 Ally Attacks 416 | . . . . . 27 16 4 . . . 41 47 22 12 61 . . 51 . . . 135 Total Damage 13470 | . . . . . 847 587 216 . . . 889 1063 724 443 1984 . . 2261 . . . 4456 Kills 79 | . . . . . 5 5 1 . . . 10 5 3 3 14 . . 7 . . . 26 Allies Corrupted 4 | . . . . . . . . . . . . . . . . . . 1 . . . 3 Allies Melted 6 | . . . . . 1 . . . . . 1 . . . . . . 1 . . 3 . X0-1V1 Amusement Gains 486 | . 14 20 25 45 . 20 . . . 10 65 . . . 96 . . 40 . 30 64 57 Good Acts 111 | . 1 3 8 6 3 5 1 . 4 14 15 3 . . . . 4 4 1 1 6 32 Bad Acts 67 | . . 5 8 11 . 1 1 . 4 2 5 4 1 . 4 1 3 1 2 2 7 5 Intel | -11 -10 -10 -8 -7 -6 -6 -6 -6 -5 -5 -5 -5 -5 -5 -4 -4 -4 -4 -3 -3 -2 -1 ------- Run | Yrd Mat Sub Mat Fac Fac Low Low Zio Pro Fac Ext Cet Arc Hub Fac Upp Upp War Pro Res Res Acc Active Infowar (turns) 11955 | 27 1727 . . 1742 350 689 74 . . 1 . . . . 758 392 519 894 587 364 1631 2200 Optics 8080 | . . . . . . 661 74 . . . . . . . 758 392 519 894 587 364 1631 2200 A.S.S. 1 | . . . . . . . . . . 1 . . . . . . . . . . . . IFF 1742 | . . . . 1742 . . . . . . . . . . . . . . . . . . Seismic 4162 | 27 1727 . . . 350 486 . . . . . . . . . 2 . . . 358 856 356 Cloaking 1623 | . . . . . . . . . . . . . . . . . . . . . 333 1290 Jamming 3941 | . . . . . . . . . . . . . . . . . 299 491 587 364 761 1439 ECM 2 | . . . . . . . . . . . . . . . 2 . . . . . . . Robot Analysis Total 2 | . 1 . . . . . . . . 1 . . . . . . . . . . . . Derelict Logs Recovered 7 | . . 1 . . . 1 3 1 1 . . . . . . . . . . . . . Drone Launches 7 | . . . . . . . . . . 2 2 . . . 1 . . . . . . 2 Drone Recoveries 7 | . . . . . . . . . . 2 2 . . . 1 . . . . . . 2 Exploration | -11 -10 -10 -8 -7 -6 -6 -6 -6 -5 -5 -5 -5 -5 -5 -4 -4 -4 -4 -3 -3 -2 -1 ------------- Run | Yrd Mat Sub Mat Fac Fac Low Low Zio Pro Fac Ext Cet Arc Hub Fac Upp Upp War Pro Res Res Acc Turns Passed 24402 | 98 1931 2081 2301 2113 384 702 649 1063 809 1743 2187 590 109 132 758 392 519 894 587 364 1631 2365 Spaces Moved 12154 | 48 955 1267 1111 1121 231 432 409 710 390 642 1042 228 57 76 382 208 272 431 301 173 752 916 Core 73 | 17 . . . . . . . . . . . . . . . . . . . . . 56 Treads 9495 | 31 955 777 1111 1121 . . . . 135 608 1042 228 57 76 382 208 272 431 301 173 752 835 Legs . | . . . . . . . . . . . . . . . . . . . . . . . Wheels 2561 | . . 490 . . 231 432 409 710 255 34 . . . . . . . . . . . . Hover 25 | . . . . . . . . . . . . . . . . . . . . . . 25 Flight . | . . . . . . . . . . . . . . . . . . . . . . . Fastest Speed 50 | 50 160 120 160 161 145 145 145 145 145 145 160 160 160 160 160 160 160 160 160 160 155 50 Average Speed 158 | 122 160 144 167 163 145 145 145 145 182 160 165 160 160 160 160 160 160 160 160 160 162 161 Slowest Speed 249 | 160 160 160 243 246 145 145 145 145 236 242 243 160 160 160 160 160 160 160 160 160 240 249 Overloaded Moves . | . . . . . . . . . . . . . . . . . . . . . . . Propulsion Burnouts . | . . . . . . . . . . . . . . . . . . . . . . . Robots Hopped . | . . . . . . . . . . . . . . . . . . . . . . . Potential Cave-ins 16 | . . . . . . . . . . . . . . . . . 7 . . . 3 6 Cave-ins Triggered . | . . . . . . . . . . . . . . . . . . . . . . . Exploration Rate (%) 50 | 3 98 62 92 36 10 74 66 82 56 18 87 74 71 8 17 51 45 67 56 8 35 34 Regions Visited 22 Branch Regions 13 Pre-discovered Areas 11 | . 1 1 . 1 . 1 2 5 . . . . . . . . . . . . . . Known Exits Taken 13 | . . . 1 1 1 1 . . 1 1 1 1 . 1 1 . 1 . . 1 1 . Unknown Exits Taken 9 | 1 1 1 . . . . 1 1 . . . . 1 . . 1 . 1 1 . . . Scrap Searched 22 | . . 4 . . . 4 . 4 2 . . . . . . 3 2 . 3 . . . Spaces Dug 56 | . . 6 1 3 . . . . . 11 . . . . 3 . 1 . . 2 . 29 Terrain Destroyed 1105 | . 15 69 84 90 1 66 . 1 82 16 60 7 6 5 142 44 61 37 15 3 43 258 Melee 31 | . . 6 1 3 . . . . . 3 . . . . . . . . . 1 . 17 Projectile 257 | . . 1 4 4 1 . . 1 . 13 5 7 6 5 58 27 13 37 15 . 25 35 AOE 808 | . 15 62 79 83 . 66 . . 82 . 54 . . . 84 17 48 . . . 18 200 Terrain Rammed . | . . . . . . . . . . . . . . . . . . . . . . . Walls Destroyed . | . . . . . . . . . . . . . . . . . . . . . . . Machines Disabled . | . . . . . . . . . . . . . . . . . . . . . . . Actions | -11 -10 -10 -8 -7 -6 -6 -6 -6 -5 -5 -5 -5 -5 -5 -4 -4 -4 -4 -3 -3 -2 -1 --------- Run | Yrd Mat Sub Mat Fac Fac Low Low Zio Pro Fac Ext Cet Arc Hub Fac Upp Upp War Pro Res Res Acc Total 15493 | 70 1209 1407 1427 1307 263 472 440 737 436 1194 1362 407 65 79 468 238 318 554 363 232 1036 1409 Wait 1339 | 3 122 25 118 54 2 7 8 . 4 373 93 110 2 1 18 13 17 2 44 37 122 164 Move 12132 | 47 954 1266 1110 1120 230 431 408 709 389 641 1041 227 56 75 381 207 271 430 300 172 751 916 Hop . | . . . . . . . . . . . . . . . . . . . . . . . Pick Up 210 | 5 20 13 39 16 5 3 1 9 4 19 15 4 1 . 5 1 . 5 . 3 20 22 Fast Attach 137 | 4 7 2 8 9 3 3 . 2 2 13 15 7 . . 5 . . 5 . . 15 37 Attach 100 | 3 1 12 5 6 6 3 5 . 1 10 4 1 . . 3 1 3 1 . 2 7 26 Detach 50 | . . 2 2 5 . 2 5 . 3 4 1 4 . . 4 . . 5 . . 7 6 Swap 248 | . 12 18 24 20 6 5 . 6 3 24 19 11 1 . 15 3 6 6 2 4 33 30 Drop 221 | . 16 7 35 18 1 . . 6 5 28 28 17 1 . 8 1 . 6 . 2 32 10 Fire 749 | 8 76 39 80 49 8 18 10 4 24 79 60 17 4 3 27 12 16 29 17 10 46 113 Melee 121 | . . 23 6 6 2 . 3 1 . 3 . . . . . . 5 . . 1 1 70 Ram . | . . . . . . . . . . . . . . . . . . . . . . . Kick . | . . . . . . . . . . . . . . . . . . . . . . . Crush 23 | . 1 . . 4 . . . . 1 . 1 . . . 2 . . . . 1 2 11 Escape Stasis 4 | . . . . . . . . . . . . . . . . . . . . . . 4 Rewire 133 | . . . . . . . . . . . 77 . . . . . . 56 . . . . Trap . | . . . . . . . . . . . . . . . . . . . . . . . Miscellaneous 26 | . . . . . . . . . . . 8 9 . . . . . 9 . . . . Route ------- -11/Scrapyard -10/Materials (discovered 5 exits: *Mat x3 / [*Min] / [*Sub]) -10/Subcaves (discovered 2 exits: *Mat x2) -8/Materials (discovered 3 exits: *Fac x3) -7/Factory (discovered 3 exits: *Fac x3) -6/Factory -6/Lower Caves -6/Lower Caves (discovered 2 exits: *Fac / [*Zio]) -6/Zion -5/Proximity Caves -5/Factory (discovered 3 exits: Fac / *Ext x2) -5/Extension (discovered 3 exits: *Fac x2 / *Cet) -5/Cetus (discovered 2 exits: *Fac / *Arc) -5/Archives -5/Hub_04(d) -4/Factory (discovered 3 exits: *Upp x2 / Arm) -4/Upper Caves -4/Upper Caves (discovered 2 exits: [*Res] / *War) -4/Warlord -3/Proximity Caves -3/Research -2/Research -1/Access (discovered 2 exits: Sur / Com) History --------- Turn | Location | Event 10 | -11/Scrapyard | Discovered new exit (range 16) 99 | -11/Scrapyard | Entered Materials 309 | -10/Materials | Build established: Mutant 421 | -10/Materials | Discovered new exit (range 15) 532 | -10/Materials | Discovered new exit (range 16) 792 | -10/Materials | Discovered new exit (range 15) 1245 | -10/Materials | Discovered new exit (range 8) 1588 | -10/Materials | Identified exit to Materials 1588 | -10/Materials | Learned location of 1 exit from Materials 1634 | -10/Materials | Learned Storage security intel 1669 | -10/Materials | Learned Storage interactive machine intel 1733 | -10/Materials | Learned Storage trap positions 1759 | -10/Materials | Learned Storage trap positions 1856 | -10/Materials | Prayed at D.C.S.S. Altar Unit 1882 | -10/Materials | Core integrity permanently improved by X0-1V1 (+200) 2030 | -10/Materials | Entered Subcaves 2301 | -10/Subcaves | A swath of the cavern ceiling suddenly collapsed 2508 | -10/Subcaves | Ambushed by Subdweller buried in earth 2618 | -10/Subcaves | Learned location of Zion (-6) 2618 | -10/Subcaves | Met a Zionite searching for "candidates" 2684 | -10/Subcaves | Shifting Twisted Machinery released Sub. Monowheel 2684 | -10/Subcaves | Shifting Twisted Machinery released Sub. Optics 2738 | -10/Subcaves | Disturbed a concealed Subdweller 2856 | -10/Subcaves | Discovered new exit (range 14) 2889 | -10/Subcaves | Discovered new exit (range 15) 2975 | -10/Subcaves | Visited 4L-MR0's lab 3300 | -10/Subcaves | Ambushed by Subdwellers from Twisted Machinery 3314 | -10/Subcaves | Core integrity fell below 50% 3356 | -10/Subcaves | Lost 4 parts (2n2w) 3607 | -10/Subcaves | Disturbed a concealed Subdweller 3646 | -10/Subcaves | X0-1V1 sent hostile S-10 Pest (x3) 3720 | -10/Subcaves | Learned Materials interactive machine intel 3793 | -10/Subcaves | Heat dissipation permanently improved by X0-1V1 (+25; -125 max core) 3929 | -10/Subcaves | A swath of the cavern ceiling suddenly collapsed 4111 | -10/Subcaves | Entered Materials 4111 | -8/Materials | Evolved 4 slots: Propulsion x2, Utility x1, Weapon x1 4112 | -8/Materials | Identified exit to Factory 4113 | -8/Materials | Loaded intel: 19 interactive machine locations 4414 | -8/Materials | Build established: Derelict-Tank 4588 | -8/Materials | X0-1V1 sent you into danger 4720 | -8/Materials | TH resistance permanently improved by X0-1V1 (+10%; -100 max core) 4860 | -8/Materials | Build established: Derelict-Gunner 5017 | -8/Materials | Central database locked down 5060 | -8/Materials | X0-1V1 added 0b10 threat records associated with you (minor) 5128 | -8/Materials | X0-1V1 revealed exit location to -7/Factory 5247 | -8/Materials | Build established: Gunner 5335 | -8/Materials | X0-1V1 revealed exit location to -7/Factory 5546 | -8/Materials | X0-1V1 activates XOMVISION 5934 | -8/Materials | Met 7R-MNS 6047 | -8/Materials | System corruption reached 10% 6267 | -8/Materials | Repaired Arm. Treads 6294 | -8/Materials | Repaired Lgt. Treads 6412 | -8/Materials | Entered Factory 6412 | -7/Factory | Evolved 2 slots: Propulsion x2 6413 | -7/Factory | Caught up to 7R-MNS 6434 | -7/Factory | Garrison activated, responded to threat 6711 | -7/Factory | X0-1V1 sent you to a vault 6725 | -7/Factory | Found Prototype Device 6725 | -7/Factory | Identified Skeleton Box 6750 | -7/Factory | Build established: Scavenger-Gunner 7035 | -7/Factory | X0-1V1 activates XOMVISION 7331 | -7/Factory | Build established: Scavenger-Skirmisher 7476 | -7/Factory | X0-1V1 added 0b10 threat records associated with you (minor) 7544 | -7/Factory | X0-1V1 enhanced Transport squad support 7549 | -7/Factory | X0-1V1 vaporized surrounding terrain (radius 15) 7584 | -7/Factory | Discovered new exit (range 15) 7597 | -7/Factory | Cargo convoy interrupted 7675 | -7/Factory | Found Prototype Launcher 7675 | -7/Factory | Identified Rocket Array 7770 | -7/Factory | Learned Extension emergency access door positions 7833 | -7/Factory | Learned location of 1 exit from Cetus 7884 | -7/Factory | Learned location of 1 exit from Lower Caves 7953 | -7/Factory | Identified exit to Factory 8041 | -7/Factory | Learned 2 Extension zone layouts 8412 | -7/Factory | First assault squad dispatched 8525 | -7/Factory | Entered another Factory area 8525 | -6/Factory | Evolved 2 slots: Utility x2 8526 | -6/Factory | Caught up to 7R-MNS 8554 | -6/Factory | Lost 9 parts (4n2u3w) 8695 | -6/Factory | X0-1V1 sent you to a vault 8810 | -6/Factory | Discovered new exit (range 3) 8816 | -6/Factory | Identified exit to Lower Caves 8909 | -6/Factory | Entered Lower Caves 8909 | -6/Lower Caves | Accompanied by 3 allies 8910 | -6/Lower Caves | Identified exit to Lower Caves 9012 | -6/Lower Caves | X0-1V1 activates XOMVISION 9244 | -6/Lower Caves | Build established: Skirmisher 9324 | -6/Lower Caves | Attracted the attention of an 0b10 checkpoint 9611 | -6/Lower Caves | Entered another Lower Caves area 9611 | -6/Lower Caves | Accompanied by 1 ally 9635 | -6/Lower Caves | Learned Factory stockpile data 9683 | -6/Lower Caves | Attracted the attention of an 0b10 base 9726 | -6/Lower Caves | Build established: Gunner 9759 | -6/Lower Caves | Learned Armory garrison access intel 9759 | -6/Lower Caves | Learned Extension security intel 9759 | -6/Lower Caves | Learned Armory trap positions 9759 | -6/Lower Caves | Learned Factory trap positions 9784 | -6/Lower Caves | Discovered new exit (range 8) 10026 | -6/Lower Caves | Build established: Mutant 10252 | -6/Lower Caves | Discovered new exit (range 5) 10260 | -6/Lower Caves | Entered Zion 10320 | -6/Zion | Discovered new exit (range 11) 10628 | -6/Zion | Visited the Megawrench Repair Shop 10628 | -6/Zion | Megawrench repaired 10 parts 10683 | -6/Zion | Given the Hacking Drone Bay 10684 | -6/Zion | Found Prototype Device 10686 | -6/Zion | Identified Hacking Drone Bay 10709 | -6/Zion | Build established: Scavenger-Mutant 10743 | -6/Zion | Learned location of Armory (-4) 10752 | -6/Zion | Learned location of Quarantine (-3) 10771 | -6/Zion | Learned location of Warlord (-4) 10778 | -6/Zion | Received a hallucinogenic algorithm 10794 | -6/Zion | Acquired unknown access codes intercepted by a Zionite 11013 | -6/Zion | Learned 8 Factory zone layouts 11076 | -6/Zion | Found CR-A16's Pointy Stick 11122 | -6/Zion | Found GAL Module 11323 | -6/Zion | Entered Proximity Caves 11326 | -5/Proximity Caves | X0-1V1 upgraded hostiles (x2) 11386 | -5/Proximity Caves | Identified exit to Factory 11386 | -5/Proximity Caves | X0-1V1 revealed exit location to -5/Factory 11461 | -5/Proximity Caves | Spotter reported a threat 11471 | -5/Proximity Caves | Spotter reported a threat 11476 | -5/Proximity Caves | X0-1V1 activates XOMVISION 11486 | -5/Proximity Caves | Attracted the attention of an 0b10 base 11514 | -5/Proximity Caves | Spotter reported a threat 11531 | -5/Proximity Caves | X0-1V1 whisked you away to safety 11614 | -5/Proximity Caves | Build established: Scavenger-Gunner 11838 | -5/Proximity Caves | Learned Factory garrison access intel 11838 | -5/Proximity Caves | Learned Extension terminal intel 11838 | -5/Proximity Caves | Learned Research emergency access door positions 11838 | -5/Proximity Caves | Learned Factory emergency access door positions 11908 | -5/Proximity Caves | Learned Factory stockpile data 12000 | -5/Proximity Caves | Spotted B-75 Beast 12108 | -5/Proximity Caves | X0-1V1 vaporized surrounding terrain (radius 16) 12132 | -5/Proximity Caves | Entered Factory 12132 | -5/Factory | Evolved 2 slots: Utility x1, Weapon x1 12133 | -5/Factory | Identified exit to Extension 12134 | -5/Factory | Loaded intel: 79 trap records 12137 | -5/Factory | Loaded intel: 4 garrison access locations 12175 | -5/Factory | X0-1V1 sent you to a vault 12180 | -5/Factory | Found Prototype Device 12180 | -5/Factory | Identified Active Sensor Suite 12432 | -5/Factory | Search patrols dispatched 12498 | -5/Factory | Build established: Scavenger-Tank 12739 | -5/Factory | X0-1V1 activates XOMVISION 12800 | -5/Factory | Identified exit to Factory 12800 | -5/Factory | X0-1V1 revealed exit location to -4/Factory 12879 | -5/Factory | X0-1V1 revealed exit location to -5/Extension 13116 | -5/Factory | Repaired Imp. Treads 13555 | -5/Factory | X0-1V1 foreshadows a heat wave 13716 | -5/Factory | Ambient heat levels rising (+10) 13875 | -5/Factory | Entered Extension 13879 | -5/Extension | Loaded intel: 12 terminal locations 14312 | -5/Extension | Build established: Tank 14356 | -5/Extension | X0-1V1 revealed exit location to -4/Factory 14438 | -5/Extension | X0-1V1 opened Sealed Heavy Doors 14439 | -5/Extension | Rescued a captive Derelict 14460 | -5/Extension | X0-1V1 revealed exit location to -4/Factory 14463 | -5/Extension | Rescued a captive Derelict 14471 | -5/Extension | Rescued a captive Derelict 14645 | -5/Extension | Rescued a captive Derelict 14647 | -5/Extension | Rescued a captive Derelict 14812 | -5/Extension | Spotted B-75 Beast 14823 | -5/Extension | Destroyed B-75 Beast 14840 | -5/Extension | Spotted B-75 Beast 14885 | -5/Extension | Destroyed B-75 Beast 14911 | -5/Extension | Lost 3 parts (2n1u) 14913 | -5/Extension | Lost 8 allies 14975 | -5/Extension | Identified exit to Cetus 14975 | -5/Extension | X0-1V1 revealed exit location to -5/Cetus 14994 | -5/Extension | X0-1V1 sent hostile Fireman (x2) 15222 | -5/Extension | Build established: Scavenger-Tank 15320 | -5/Extension | X0-1V1 sent hostile H-66 Slayer (x2) 15608 | -5/Extension | Rescued A7 15814 | -5/Extension | Rescued a captive Derelict 15815 | -5/Extension | Rescued a captive Derelict 16062 | -5/Extension | Entered Cetus 16062 | -5/Cetus | Accompanied by 7 allies (A7) 16067 | -5/Cetus | Acquired a Cetus Manufacturing Module code from A7 16080 | -5/Cetus | Spotted Cetus Guard 16080 | -5/Cetus | Spotted Cetus Guard 16080 | -5/Cetus | Spotted Cetus Guard 16080 | -5/Cetus | Spotted Cetus Guard 16099 | -5/Cetus | Allies destroyed Cetus Guard 16109 | -5/Cetus | Destroyed Cetus Guard 16113 | -5/Cetus | Destroyed Cetus Guard 16113 | -5/Cetus | Allies destroyed Cetus Guard 16144 | -5/Cetus | Lost 3 allies 16196 | -5/Cetus | Identified exit to Archives 16196 | -5/Cetus | X0-1V1 revealed exit location to -5/Archives 16279 | -5/Cetus | Escorted A7 to Cetus Mainframe 16301 | -5/Cetus | Started Cetus Manufacturing Module 16326 | -5/Cetus | Manufactured an Enhanced Grunt 16351 | -5/Cetus | Manufactured an Enhanced Grunt 16354 | -5/Cetus | Spotted Cetus Guard 16354 | -5/Cetus | Spotted Cetus Guard 16354 | -5/Cetus | Spotted Cetus Guard 16354 | -5/Cetus | Spotted Cetus Guard 16373 | -5/Cetus | Allies destroyed Cetus Guard 16376 | -5/Cetus | Manufactured an Enhanced Grunt 16382 | -5/Cetus | Destroyed Cetus Guard 16382 | -5/Cetus | Destroyed Cetus Guard 16383 | -5/Cetus | Allies destroyed Cetus Guard 16401 | -5/Cetus | Manufactured an Enhanced Grunt 16413 | -5/Cetus | Met Revision 17 16426 | -5/Cetus | Manufactured an Enhanced Grunt 16652 | -5/Cetus | Entered Archives 16652 | -5/Archives | Accompanied by 6 allies (A7) 16657 | -5/Archives | Received a hacking code to weaken MAIN.C 16704 | -5/Archives | Discovered new exit (range 16) 16761 | -5/Archives | Entered Hub_04(d) 16761 | -5/Hub_04(d) | Accompanied by 5 allies 16866 | -5/Hub_04(d) | Discovered exit to Factory (range 8) 16893 | -5/Hub_04(d) | Entered Factory 16893 | -4/Factory | Accompanied by 5 allies 16893 | -4/Factory | Evolved 2 slots: Power x1, Utility x1 17038 | -4/Factory | Garrison activated, responded to threat 17215 | -4/Factory | Identified exit to Upper Caves 17215 | -4/Factory | Identified exit to Armory 17326 | -4/Factory | Found Prototype Device 17326 | -4/Factory | Identified Exp. Thermal Shield 17543 | -4/Factory | System corruption reached 10% 17544 | -4/Factory | Found Prototype Processor 17544 | -4/Factory | Identified Exp. Melee Analysis Suite 17639 | -4/Factory | Cargo convoy interrupted 17643 | -4/Factory | First assault squad dispatched 17651 | -4/Factory | Entered Upper Caves 17674 | -4/Upper Caves | Lost 3 allies 17843 | -4/Upper Caves | Attracted the attention of an 0b10 checkpoint 18013 | -4/Upper Caves | Discovered new exit (range 19) 18043 | -4/Upper Caves | Entered another Upper Caves area 18048 | -4/Upper Caves | Discovered new exit (range 18) 18070 | -4/Upper Caves | Spotted B-86 Titan 18201 | -4/Upper Caves | Lost 4 parts (1p2u1w) 18213 | -4/Upper Caves | Revealed the true nature of CR-A16's Pointy Stick 18244 | -4/Upper Caves | X0-1V1 activates XOMVISION 18354 | -4/Upper Caves | Encountered a Warlord checkpoint 18398 | -4/Upper Caves | Identified exit to Warlord 18398 | -4/Upper Caves | X0-1V1 revealed exit location to -4/Warlord 18516 | -4/Upper Caves | Attracted the attention of an 0b10 checkpoint 18562 | -4/Upper Caves | Entered Warlord 18617 | -4/Warlord | System corruption cleaned by Quarantine Array 18834 | -4/Warlord | Visited the Vortex Lab 18842 | -4/Warlord | Warlord's base attacked by MAIN.C 18846 | -4/Warlord | Found Prototype Energy Gun 18846 | -4/Warlord | Identified Vortex Rifle 18851 | -4/Warlord | Found Vortex Rifle 18994 | -4/Warlord | Met Warlord 19050 | -4/Warlord | Found Prototype Reactor 19050 | -4/Warlord | Identified Vortex Chain Reactor 19055 | -4/Warlord | Found Prototype Processor 19055 | -4/Warlord | Identified Exp. Targeting Computer 19063 | -4/Warlord | Found Prototype Device 19063 | -4/Warlord | Identified Exp. Focal Shield 19067 | -4/Warlord | Found Prototype Processor 19067 | -4/Warlord | Identified Exp. Armor Integrity Analyzer 19192 | -4/Warlord | Warlord forces counterattacked 19246 | -4/Warlord | Spotted Striker 19273 | -4/Warlord | Allies destroyed Striker 19283 | -4/Warlord | Spotted B-90 Cyclops 19286 | -4/Warlord | Spotted Executioner 19298 | -4/Warlord | Destroyed B-90 Cyclops 19306 | -4/Warlord | Spotted Striker 19307 | -4/Warlord | P-80 Master assimilated allied Sentinel 7c 19350 | -4/Warlord | Destroyed 9 combat bots 19354 | -4/Warlord | Lost 20 allies 19384 | -4/Warlord | Spotted Executioner 19391 | -4/Warlord | Spotted Executioner 19399 | -4/Warlord | Destroyed Executioner 19420 | -4/Warlord | Spotted Executioner 19427 | -4/Warlord | X0-1V1 turns hostiles against one another 19432 | -4/Warlord | Discovered new exit (range 16) 19456 | -4/Warlord | Entered Proximity Caves 19480 | -3/Proximity Caves | Lost 9 allies 19482 | -3/Proximity Caves | X0-1V1 sent hostile H-77 Assassin (x2) 20000 | -3/Proximity Caves | Discovered new exit (range 5) 20043 | -3/Proximity Caves | Entered Research 20043 | -3/Research | Evolved 2 slots: Utility x2 20133 | -3/Research | X0-1V1 activates XOMVISION 20243 | -3/Research | Revision forces began assault on 0b10 20285 | -3/Research | Met up with Revision 17++ 20346 | -3/Research | X0-1V1 sent hostile X-77 Beamer (x2) 20403 | -3/Research | Discovered new exit (range 2) 20407 | -3/Research | Identified exit to Research 20407 | -3/Research | Entered another Research area 20407 | -2/Research | Warlord forces began assault on 0b10 20407 | -2/Research | Evolved 2 slots: Utility x1, Weapon x1 20517 | -2/Research | Research machine network offline 20650 | -2/Research | Spotted B-90 Cyclops 20663 | -2/Research | Destroyed B-90 Cyclops 20762 | -2/Research | X0-1V1 enhanced Transport squad support 20831 | -2/Research | Borebot progress halted 20876 | -2/Research | Found Prototype Processor 20876 | -2/Research | Identified Exp. Core Analyzer 20985 | -2/Research | Lost 3 allies 21012 | -2/Research | Spotted Executioner 21022 | -2/Research | Spotted Executioner 21044 | -2/Research | Destroyed Executioner 21050 | -2/Research | Destroyed Executioner 21077 | -2/Research | Found Exp. Targeting Computer 21091 | -2/Research | Found Exp. Core Analyzer 21132 | -2/Research | Spotted Striker 21153 | -2/Research | Spotted Striker 21183 | -2/Research | Discovered new exit (range 6) 21192 | -2/Research | Lost 6 allies 21231 | -2/Research | Identified exit to Access 21233 | -2/Research | Spotted Striker 21259 | -2/Research | Spotted Striker 21260 | -2/Research | Spotted Striker 21274 | -2/Research | Destroyed Striker 21283 | -2/Research | Lost 3 allies 21312 | -2/Research | Spotted Executioner 21328 | -2/Research | Destroyed Executioner 21331 | -2/Research | Spotted Executioner 21335 | -2/Research | Destroyed Executioner 21377 | -2/Research | X0-1V1 sent you to a vault 21383 | -2/Research | X0-1V1 added 0b10 threat records associated with you (considerable) 21387 | -2/Research | Found Prototype Device 21387 | -2/Research | Identified Exp. Transmission Jammer 21393 | -2/Research | System corruption reached 10% 21430 | -2/Research | Found Prototype Device 21430 | -2/Research | Identified Thermal Barrier 21620 | -2/Research | Found Prototype Launcher 21620 | -2/Research | Identified Enh. Gamma Bomb Array 21699 | -2/Research | X0-1V1 activates XOMVISION 21738 | -2/Research | Spotted Striker 21781 | -2/Research | Borebot progress halted 21787 | -2/Research | Borebot progress halted 21857 | -2/Research | Spotted Striker 21858 | -2/Research | Spotted Striker 21894 | -2/Research | Spotted Executioner 21907 | -2/Research | Destroyed Executioner 21912 | -2/Research | Given Cave Seal Controls access code 21923 | -2/Research | Spotted Striker 21924 | -2/Research | Spotted Executioner 21927 | -2/Research | Spotted Striker 21945 | -2/Research | Destroyed Striker 21948 | -2/Research | Destroyed Executioner 21977 | -2/Research | Destroyed 11 combat bots 21984 | -2/Research | Lost 15 allies 22038 | -2/Research | Spotted Striker 22038 | -2/Research | Entered Access 22038 | -1/Access | Evolved 2 slots: Utility x1, Weapon x1 22126 | -1/Access | Garrison activated, responded to threat 22127 | -1/Access | X0-1V1 mutated your Propulsion slot to Utility slot 22328 | -1/Access | Spotted 16-4WJ(D) 22328 | -1/Access | Destroyed 16-4WJ(D) 22370 | -1/Access | Build established: Scavenger-Executioner 22391 | -1/Access | X0-1V1 added 0b10 threat records associated with you (considerable) 22538 | -1/Access | First assault squad dispatched 22603 | -1/Access | Found Hvy. Scimitar of Distortion 22658 | -1/Access | Identified exit to Surface 22658 | -1/Access | X0-1V1 revealed exit location to -0/Surface 22776 | -1/Access | Spotted B-99 Colossus 22820 | -1/Access | X0-1V1 destroyed Energy Cycler 22820 | -1/Access | Energy Cycler disabled 22831 | -1/Access | X0-1V1 activates XOMVISION 22847 | -1/Access | Destroyed B-99 Colossus 22877 | -1/Access | Lost 5 parts (1p1u3w) 22924 | -1/Access | Found Prototype Ballistic Gun 22924 | -1/Access | Identified Multirail 22928 | -1/Access | Found Multirail 23215 | -1/Access | System corruption reached 10% 23267 | -1/Access | Destroyed 7 combat bots 23273 | -1/Access | X0-1V1 downgraded hostiles (x4) 23314 | -1/Access | Identified exit to Command 23314 | -1/Access | X0-1V1 revealed exit location to -1/Command 23483 | -1/Access | Garrison activated, responded to threat 23542 | -1/Access | Destroyed 13 combat bots 23545 | -1/Access | Weapon slot count temporarily expanded by X0-1V1 (+1) 23608 | -1/Access | X0-1V1 sent allied L-61 Swordsman (x3) 23639 | -1/Access | X0-1V1 turns hostiles against one another 23642 | -1/Access | Garrison activated, responded to threat 23667 | -1/Access | Lost 16 parts (1p4n7u4w) 23684 | -1/Access | Lost 8 allies 23730 | -1/Access | X0-1V1 sent allied Lightning (x2) 23790 | -1/Access | High security lockdown imminent 23826 | -1/Access | X0-1V1 activates XOMVISION 23870 | -1/Access | High security lockdown engaged 23921 | -1/Access | Garrison activated, responded to threat 23954 | -1/Access | X0-1V1 sent allied Thug (x3) 23978 | -1/Access | Lost 8 parts (1n4u3w) 23992 | -1/Access | Spotted Investigator 24002 | -1/Access | Destroyed Investigator 24061 | -1/Access | Destroyed 10 combat bots 24105 | -1/Access | X0-1V1 sent allied G-73 Enforcer (x3) 24172 | -1/Access | Found Hvy. Reactive Plating 24183 | -1/Access | Lost 3 allies 24238 | -1/Access | Released all parts (18) 24240 | -1/Access | Core integrity fell below 50% 24243 | -1/Access | Weapon slot count temporarily expanded by X0-1V1 (+1) 24250 | -1/Access | Core integrity fell below 20% 24257 | -1/Access | X0-1V1 sent you to a vault 24268 | -1/Access | Lost 7 parts (1p3n1u2w) 24297 | -1/Access | Found Prototype Launcher 24297 | -1/Access | Identified Ragnarok Missile Launcher 24316 | -1/Access | Found Quantum Capacitor 24327 | -1/Access | X0-1V1 activates XOMVISION 24332 | -1/Access | Spotted Striker 24352 | -1/Access | Destroyed Striker 24385 | -1/Access | Spotted Executioner 24385 | -1/Access | Spotted Striker 24393 | -1/Access | System corruption reached 30% 24403 | -1/Access | Destroyed by Striker with Plasma Lance Last Messages --------------- the area (+20% ranged accuracy). 24397_ Destroyed Imp. Antigrav System. 24397_ Destroyed Adv. Remote Datajack. 24397_ M-36 Artificer destroyed. 24398_ The unstable cave ceiling collapses. 24398_ K-01 Serf collects debris. 24399_ X0-1V1 uses you as a vessel of destruction. 24400_ Activated siege mode. 24400_ The unstable cave ceiling collapses. 24400_ Dropped Ragnarok Missile Launcher. 24401_ The unstable cave ceiling collapses. 24402_ X0-1V1 connects you with a stream of twisted latent energy (+14 energy generation). 24402_ K-01 Serf collects debris. 24402_ Penetrated by Slug. 24402_ Slug penetrates Wall. 24402_ Penetrated by Slug. 24403_ The unstable cave ceiling collapses. 24403_ X0-1V1 chortles! Map ----- +----------------------------------------------------+ | ?????????????????????????????????????????????????? | | ?????????????????????????????????????????????????? | | ?????????????????????????????????????????????????? | | ?????????????????????????????????????????????????? | | ?????????????????????????????????????????????????? | | ?????????????????????????????????????????????????? | | ?????????????????????????????????????????????????? | | ?????????????????????????????????????????????????? | | ?????????????????????????????????????????????????? | | ?????????????????????????############????????????? | | ?????????????????######### # #????????????? | | ??????????? % / #????????????? | | ??????????????????######## " #????????????? | | ?????????????????????????## ## !#????????????? | | ??????????????????????????# ## #????????????? | | ??????????????????????##### ##! #????????????? | | ??????????????????????+ ## ###????????????? | | ??????????????????????##### # # ##????????????? | | ???????????????????????## #????????????? | | ??????????????? "" #### # ## ############## | | ??????????????? T" % C | | ???????????? #### #??##### | | ??????????????????????# E % #??????# | | ??????????????????????# % # ## #???????# | | ??????????????????????# K +######### | | ???????????????????????# @ # | | ???????????????????????## p# # | | ???????????????C?k??????# k # | | ????????????????????????# # | | ????????????????????????# % # % # | | ????????????????????????### m/ | | ????????????????k??????????# # | | ????????????????????????????# # | | ?????????????????????????????# != # | | ??????????????????????????????# [%%" # | | ??????????????????????????????# |[ # | | ??????????????????????????????# # | | ??????????????????????????????############"" | | ?????????????????????????????????????????### % | | ???????????????????????????????????????????# !*/= | | ???????????????????????????????????????????# !%!*% | | ???????????????????????????????????????????# [][=| | | ???????????????????????????????????????????#!!!![= | | ???????????????????????????????????????????# !* != | | ???????????????????????????????????????????# ! *! | | ???????????????????????????????????????????# %[!! | | ?????????????????????????????????########### % | | ????????????????????????????????? | | ????????????????????????????????? | | ???????????????????????????????? | +----------------------------------------------------+ Best States ------------- Heat Dissipation 166 Energy Generation 63 Energy Capacity 2200 Matter Stores 1000 Matter Capacity 1000 Sight Range 26 Terrain Scan Density 10 Jamming Range 22 Cloak Strength 4 EM Shielding 4 Corruption Containment 36 Armor Coverage 1350 Resistance: KI 23 Resistance: TH 97 Core Shielding 30 Point Defense Rating 240 Phase Shifting 10 Evasion (%) 53 Targeting Accuracy 24 Melee Accuracy 8 Core Analysis 8 Armor Integrity Analysis 50 Recoil Reduction 6 Particle Charging 37 Kinecelleration 30 Offensive Hacking 12 Defensive Hacking 10 Item Schematics ----------------- None Robot Schematics ------------------ None Fabricated ------------ Nothing Repaired ---------- Arm. Treads | 72% | -8/Materials Lgt. Treads | 42% | -8/Materials Imp. Treads | 14% | -5/Factory Studied --------- Wheel | -8/Materials | Hacked Imp. Grenade Launcher | -7/Factory | Hacked Alien Tech Used ----------------- None Achievements -------------- Chaos Is Inevitable Challenges ------------ None Game ------ Seed TitaniumConceptSlayer Manual? 0 Play Time 05:36:56 Cumulative 479.4 hours Start 2026.08.01 @ 00:02:19 End 2026.08.26 @ 16:27:33 Sessions 15 Manual Loads 0 Difficulty Rogue Special Mode None Game No. 369 Rogue 369 Adventurer 0 Explorer 0 Win Type - Total 8 Types 6/0/0/0/0/0/0/2/0/0 Lore% 73 Gallery% 71 Achievement% 61 Wizard Run 0 Options --------- Layout 1 ASCII 0 Keyboard 1 Movement Arrows Keybinds 0 Fullscreen 1 Font 36/Smallcaps Map View 50x40 Zoom Use 0% Tactical HUD 1 Map Filters NONE Filters NONE Steam 1 RUN: 5163c0e8-c580-4a79-b5c7-8d4ee07b3c48